fUST/lending_fUST_20240825
["ID","MTS","AMOUNT","RATE_DAILY","PERIOD"]
[335910665,1724585438599,-288.46607895,0.00012985,2]
[335910666,1724585438609,-495.46049752,0.00012989,2]
[335910667,1724585438619,-300.0,0.0001299,2]
[335910668,1724585438629,-300.0,0.0001304,2]
[335910669,1724585438640,-626.30605453,0.00013041,2]
[335910670,1724585438649,-153.0,0.00013151,2]
[335910671,1724585438659,-5721.01586602,0.00013327,2]
[335910672,1724585438668,-197.9190774,0.00013333,2]
[335910673,1724585438678,-863.03675999,0.00013596,2]
[335910674,1724585438688,-2161.18089243,0.00013598,2]
[335910675,1724585438698,-1416.0,0.00013655,2]
[335910676,1724585438708,-150.0,0.00013655,2]
[335910677,1724585438719,-522.0,0.00013655,2]
[335910678,1724585438729,-4223.64270328,0.00013658,2]
[335910701,1724585440620,-138777.24661239,0.00013658,2]
[335910993,1724586639177,-838.26120365,0.00012508,2]
[335910994,1724586639186,-250.0,0.00012609,2]
[335910995,1724586639195,-281.241985,0.00012877,2]
[335910996,1724586639204,-288.40376337,0.00013025,2]
[335910997,1724586639214,-991.38842768,0.00013051,2]
[335910998,1724586639224,-409.212231,0.000132,2]
[335910999,1724586639234,-207.7300879,0.000132,2]
[335911000,1724586639245,-5721.01586602,0.0001337,2]
[335911001,1724586639255,-300.0,0.00013498,2]
[335911002,1724586639264,-409.311066,0.000135,2]
[335911003,1724586639274,-207.7300879,0.000135,2]
[335911004,1724586639284,-415.4601758,0.000135,2]
[335911005,1724586639293,-818.5467458,0.000135,2]
[335911006,1724586639302,-306.0,0.000135,2]
[335911007,1724586639311,-409.311066,0.000135,2]
[335911008,1724586639322,-415.4601758,0.000135,2]
[335911009,1724586639332,-153.0,0.000135,2]
[335911010,1724586639344,-1900.7165056,0.00013539,2]
[335911011,1724586639354,-154.91489322,0.00013596,2]
[335911012,1724586639363,-1945.06280316,0.00013598,2]
[335911013,1724586639372,-209.63082911,0.000136,2]
[335911021,1724586640770,-487.20944149,0.000136,2]
[335911022,1724586640780,-259.51050466,0.00013658,2]
[335911023,1724586640790,-503.41471562,0.00013658,2]
[335911024,1724586640800,-305.97945683,0.00013658,2]
[335911025,1724586640810,-4721.04600346,0.00013658,2]
[335911026,1724586640819,-356.75448895,0.00013658,2]
[335911028,1724586640828,-155.06087302,0.00013658,2]
[335911029,1724586640838,-511.66111047,0.00013658,2]
[335911030,1724586640847,-406.77446256,0.00013658,2]
[335911031,1724586640857,-150.0,0.00013662,2]
[335911032,1724586640866,-522.0,0.00013662,2]
[335911033,1724586640875,-1416.0,0.00013662,2]
[335911034,1724586640885,-150.0,0.00013662,2]
[335911035,1724586640894,-150.0,0.00013662,2]
[335911036,1724586640904,-150.0,0.00013662,2]
[335911037,1724586640914,-500.0,0.00013673,2]
[335911038,1724586640923,-48783.60020375,0.00013688,2]
[335911136,1724586660987,647.37,0.00010959,2]
[335911146,1724586826492,496.1866106,0.00010959,2]
[335911172,1724587553168,15176.87365564,0.00011999,2]
[335911174,1724587692185,157.53740078,0.00012111,2]
[335911175,1724587701010,1522.20440103,0.00012111,2]
[335911179,1724587780307,510.5149478,0.00012111,2]
[335911181,1724587800346,353.47492005,0.00012111,2]
[335911217,1724587842986,-300.0,0.00012425,2]
[335911218,1724587842997,-10176.5317947,0.00012426,2]
[335911219,1724587843007,-710.71288058,0.00012779,2]
[335911220,1724587843017,-267.179885,0.00012877,2]
[335911221,1724587843026,-501.8361156,0.00012898,2]
[335911222,1724587843036,-237.57920033,0.00012898,2]
[335911223,1724587843045,-197.16299884,0.00012985,2]
[335911224,1724587843056,-481.13060409,0.00013008,2]
[335911225,1724587843066,-569.95208524,0.00013215,2]
[335911226,1724587843077,-3255.75263219,0.00013215,2]
[335911233,1724587852748,323.68,0.00010959,2]
[335911234,1724587887308,510.5149478,0.00010959,2]
[335911246,1724588029829,510.5149478,0.00010959,2]
[335911253,1724588123845,510.5149478,0.00010959,2]
[335911260,1724588506858,510.62850482,0.00010959,2]
[335911263,1724588526364,600.97792244,0.00011999,2]
[335911273,1724588613865,510.62850482,0.00011999,2]
[335911277,1724588734887,510.62850482,0.00011999,2]
[335911278,1724588745878,510.62850482,0.00011999,2]
[335911361,1724588911586,305.8,0.00010959,2]
[335911390,1724588944643,1672.57230303,0.00011999,2]
[335911481,1724589031865,-154.96893549,0.0001212,2]
[335911483,1724589031875,-250.0,0.00012374,2]
[335911485,1724589031885,-250.0,0.00012408,2]
[335911487,1724589031895,-250.0,0.00012442,2]
[335911489,1724589031907,-250.0,0.00012475,2]
[335911491,1724589031919,-250.0,0.00012509,2]
[335911494,1724589031929,-651.02603717,0.00012516,2]
[335911495,1724589031939,-250.0,0.00012543,2]
[335911498,1724589031951,-211.77309834,0.00012577,2]
[335911501,1724589031964,-38.22690166,0.00012577,2]
[335911504,1724589031974,-250.0,0.00012611,2]
[335911507,1724589031983,-250.0,0.00012645,2]
[335911509,1724589031994,-250.0,0.00012679,2]
[335911512,1724589032004,-250.0,0.00012713,2]
[335911515,1724589032013,-250.0,0.00012747,2]
[335911518,1724589032023,-155.06860153,0.00012779,2]
[335911520,1724589032032,-250.0,0.00012781,2]
[335911521,1724589032042,-250.0,0.00012815,2]
[335911522,1724589032052,-250.0,0.00012849,2]
[335911523,1724589032062,-278.820891,0.00012877,2]
[335911524,1724589032071,-250.0,0.00012883,2]
[335911525,1724589032081,-250.0,0.00012917,2]
[335911526,1724589032090,-250.0,0.00012951,2]
[335911527,1724589032100,-250.0,0.00012985,2]
[335911528,1724589032109,-300.0,0.00012999,2]
[335911529,1724589032118,-494.20192998,0.00012999,2]
[335911530,1724589032129,-862.83835129,0.00013,2]
[335911531,1724589032139,-207.7300879,0.00013,2]
[335911532,1724589032150,-207.7300879,0.00013,2]
[335911533,1724589032161,-250.0,0.00013019,2]
[335911534,1724589032173,-5721.01586602,0.0001305,2]
[335911535,1724589032183,-415.2904478,0.000131,2]
[335911536,1724589032192,-180.74681,0.0001336,2]
[335911537,1724589032203,-168.929446,0.0001336,2]
[335911538,1724589032213,-1182.01303644,0.00013557,2]
[335911562,1724589038103,-284.08699412,0.00013557,2]
[335911563,1724589038120,-107.71149381,0.00013557,2]
[335911564,1724589038129,-180.74681,0.00013583,2]
[335911565,1724589038138,-597.92180343,0.00013587,2]
[335911566,1724589038148,-2000.0,0.00013588,2]
[335911567,1724589038157,-402.07819657,0.00013593,2]
[335911568,1724589038167,-724.55193486,0.00013598,2]
[335911621,1724589645169,300.0,0.00012111,2]
[335911622,1724589653152,300.0,0.00012111,2]
[335911623,1724589669305,192.1557997,0.00012111,2]
[335911625,1724589678293,369.99286623,0.00012111,2]
[335911628,1724589707483,596.02817154,0.00012111,2]
[335911630,1724589719203,1346.76501707,0.00012111,2]
[335911631,1724589719491,154.80647955,0.00012111,2]
[335911632,1724589721305,-21927.28110789,0.000136,9]
[335911635,1724589742634,-4300.0,0.00013698,9]
[335911686,1724590180476,252.27,0.00012111,2]
[335911727,1724590238006,-314.47399217,0.00012551,2]
[335911738,1724590243174,-560.55728956,0.00012551,2]
[335911739,1724590243251,-70.91110773,0.00012551,2]
[335911743,1724590245964,-44.01381548,0.00012551,2]
[335911744,1724590245976,-225.34368129,0.00012779,2]
[335911745,1724590248345,3649.29718825,0.00012111,2]
[335911748,1724590297685,4372.71889211,0.000136,9]
[335911761,1724590575947,9665.29930679,0.00011999,2]
[335911764,1724590633463,4722.61599945,0.00011999,2]
[335911766,1724590635782,150.0,0.00012111,2]
[335911767,1724590643221,975.83235293,0.00011999,2]
[335911768,1724590651186,16328.25549438,0.00011999,2]
[335911770,1724590668161,601.94637562,0.00011999,2]
[335911771,1724590681046,623.27320342,0.00011999,2]
[335911773,1724590736269,180.92839957,0.00011999,2]
[335911774,1724590766196,16328.25549438,0.00011999,2]
[335911775,1724590851198,7917.61095957,0.00011999,2]
[335911910,1724591446186,-192.11679576,0.00012284,2]
[335911911,1724591446196,-162.887513,0.00012353,2]
[335911912,1724591446205,-544.22652236,0.00012356,2]
[335911913,1724591446214,-162.887513,0.00012445,2]
[335911914,1724591446224,-5382.81756107,0.0001248,2]
[335911915,1724591446233,-162.887513,0.00012537,2]
[335911916,1724591446242,-7339.91227262,0.00012629,2]
[335911917,1724591446252,-160.50654328,0.00012629,2]
[335911918,1724591446261,-162.887513,0.00012629,2]
[335911919,1724591446275,-162.887513,0.00012721,2]
[335911920,1724591446286,-300.0,0.00012739,2]
[335911921,1724591446295,-184.0,0.00012739,2]
[335911922,1724591446304,-297.4499739,0.0001274,2]
[335911923,1724591446314,-153.0,0.0001274,2]
[335911924,1724591446324,-153.0,0.0001274,2]
[335911925,1724591446334,-153.0,0.0001274,2]
[335911926,1724591446343,-153.0,0.0001274,2]
[335911927,1724591446353,-153.0,0.0001274,2]
[335911928,1724591446363,-153.0,0.0001274,2]
[335911929,1724591446373,-153.0,0.0001274,2]
[335911930,1724591446382,-991.86933725,0.00012782,2]
[335911931,1724591446392,-162.887513,0.00012813,2]
[335911932,1724591446401,-331.247532,0.00012877,2]
[335911933,1724591446410,-409.311066,0.00012877,2]
[335911934,1724591446421,-207.7527474,0.00012877,2]
[335911935,1724591446430,-306.0,0.00012877,2]
[335911936,1724591446440,-207.7527474,0.00012877,2]
[335911937,1724591446450,-207.7527474,0.00012877,2]
[335911938,1724591446459,-207.7527474,0.00012877,2]
[335911939,1724591446469,-207.7527474,0.00012877,2]
[335911940,1724591446478,-207.7527474,0.00012877,2]
[335911941,1724591446488,-207.7527474,0.00012877,2]
[335911942,1724591446498,-207.7527474,0.00012877,2]
[335911943,1724591446507,-415.2426447,0.00012877,2]
[335911944,1724591446518,-157.69334944,0.00012898,2]
[335911945,1724591446531,-162.887513,0.00012905,2]
[335911946,1724591446541,-729.23690144,0.00012934,2]
[335911947,1724591446553,-406.80546532,0.00012934,2]
[335911948,1724591446563,-467.4529446,0.00012976,2]
[335911949,1724591446573,-154.74467129,0.00012989,2]
[335911950,1724591446582,-154.95403965,0.00012989,2]
[335911951,1724591446592,-288.46607895,0.00012991,2]
[335911952,1724591446602,-162.887513,0.00012997,2]
[335911953,1724591446612,-800.0,0.00013,4]
[335911954,1724591446621,-700.22563776,0.00013,4]
[335911955,1724591446633,-4417.5781678,0.00013,2]
[335911956,1724591446643,-157.78180986,0.00013025,2]
[335911957,1724591446652,-223.63719614,0.00013333,2]
[335911958,1724591446668,-3548.187827,0.00013397,2]
[335911959,1724591446677,-1416.0,0.00013462,2]
[335911960,1724591446689,-13581.737,0.00013462,2]
[335911961,1724591446698,-1500.0,0.00013497,2]
[335911962,1724591446708,-9108.64740889,0.000135,9]
[335911963,1724591446719,-34142.68479,0.000135,2]
[335911964,1724591446728,-207.39746305,0.0001352,2]
[335911965,1724591446739,-1709.05944382,0.0001358,2]
[335911966,1724591446748,-158.35141027,0.00013596,2]
[335911967,1724591446758,-811.4955227,0.00013596,2]
[335911968,1724591446768,-372.64163742,0.00013596,2]
[335911969,1724591446777,-155.14347053,0.00013596,2]
[335911970,1724591446787,-695.14803561,0.00013596,2]
[335911971,1724591446797,-1106.57937084,0.00013596,2]
[335911972,1724591446807,-154.962787,0.00013596,2]
[335911973,1724591446817,-665.79988618,0.00013596,2]
[335911974,1724591446827,-899.22793923,0.00013596,2]
[335911975,1724591446839,-1848.55269677,0.00013597,2]
[335911976,1724591446849,-209.98113273,0.00013597,2]
[335911977,1724591446859,-930.37470012,0.00013597,2]
[335911978,1724591446870,-1049.23205724,0.00013597,2]
[335911979,1724591446880,-1767.29008818,0.00013597,2]
[335911980,1724591446891,-154.98799215,0.00013597,2]
[335911981,1724591446902,-978.07546588,0.00013597,2]
[335911982,1724591446913,-186.51692237,0.00013599,2]
[335911983,1724591446923,-162.4666568,0.00013599,2]
[335911984,1724591446934,-780.52341053,0.00013599,2]
[335911985,1724591446947,-174.92435112,0.00013599,2]
[335911986,1724591446958,-3000.0,0.000136,2]
[335911987,1724591446968,-150.0,0.0001362,2]
[335911988,1724591446979,-150.0,0.0001362,2]
[335911989,1724591446989,-150.0,0.0001362,2]
[335911990,1724591446998,-150.0,0.0001362,2]
[335911991,1724591447008,-522.0,0.0001362,2]
[335911992,1724591447018,-465.12264723,0.00013625,2]
[335911993,1724591447028,-1650.72474321,0.0001365,2]
[335911994,1724591447037,-93387.4184769,0.0001365,2]
[335911995,1724591447047,-3154.49393457,0.00013657,2]
[335911996,1724591447056,-6017.53479663,0.0001366,2]
[335911997,1724591447066,-500.0,0.00013673,2]
[335911998,1724591447075,-77852.83611921,0.00013678,2]
[335912039,1724592470832,3094.20831595,0.00011999,2]
[335912047,1724592499685,279.74854208,0.00011999,2]
[335912048,1724592503327,1672.17781827,0.00011999,2]
[335912049,1724592516317,154.79103211,0.00011999,2]
[335912050,1724592520207,191.88165941,0.00011999,2]
[335912066,1724592574344,16318.75386369,0.00011999,2]
[335912155,1724592814835,1447.37307258,0.00011999,2]
[335912156,1724592825816,520.80380986,0.00011999,2]
[335912159,1724592831205,6128.83552204,0.00011999,2]
[335912160,1724592880597,2128.81205104,0.00011999,2]
[335912164,1724593105350,10794.73432904,0.00011999,2]
[335912165,1724593174001,780.52341053,0.00011999,2]
[335912167,1724593240023,2246.9183785,0.0001136,2]
[335912169,1724593280303,602.25360379,0.00011999,2]
[335912170,1724593307203,272.27867785,0.00011999,2]
[335912171,1724593307572,729.23690144,0.00011999,2]
[335912173,1724593337565,729.23690144,0.00011999,2]
[335912174,1724593342979,811.4955227,0.00011999,2]
[335912176,1724593375035,5382.81756107,0.00011639,2]
[335912177,1724593384462,24890.0,0.00012026,2]
[335912182,1724593466486,210.36857024,0.00011999,2]
[335912186,1724593515580,154.74467129,0.00011999,2]
[335912187,1724593523461,818.04582615,0.00011999,2]
[335912189,1724593545678,154.74467129,0.00011999,2]
[335912268,1724593844060,-5382.81756107,0.00012126,2]
[335912269,1724593844070,-169.3521034,0.00012424,2]
[335912270,1724593844080,-5348.09945854,0.00012516,2]
[335912292,1724593846629,-745.1595877,0.00012516,2]
[335912293,1724593846687,-3572.04026055,0.00012516,2]
[335912294,1724593846697,-300.0,0.0001255,2]
[335912295,1724593846717,-2043.6165865,0.00012551,2]
[335912296,1724593856138,5382.81756107,0.00012098,2]
[335912302,1724594094704,193.21973886,0.00012098,2]
[335912303,1724594096567,985.8926091,0.00012098,2]
[335912305,1724594119326,4534.7602402,0.00012098,2]
[335912309,1724594219845,4848.5343314,0.00011808,2]
[335912310,1724594328485,288.46607895,0.00011999,2]
[335912313,1724594401174,309.48934567,0.00011999,2]
[335912317,1724594490766,899.33338326,0.00011999,2]
[335912319,1724594576518,5382.81756107,0.000121,2]
[335912320,1724594596677,188.3,0.00010959,2]
[335912325,1724594610315,621.06231277,0.00012111,2]
[335912327,1724594630536,811.88213628,0.00011999,2]
[335912328,1724594632547,1022.88139081,0.00011999,2]
[335912329,1724594636506,320.39554735,0.00011999,2]
[335912330,1724594637823,2288.40297074,0.00011999,3]
[335912331,1724594647964,1176.38569243,0.00012111,2]
[335912333,1724594664755,510.5149478,0.00012111,2]
[335912334,1724594666311,8849.49003534,0.00011999,2]
[335912336,1724594694806,510.5149478,0.00012111,2]
[335912337,1724594697943,160.82710902,0.00011999,2]
[335912338,1724594701199,535.17347615,0.00011999,2]
[335912339,1724594702503,13986.75830738,0.00012111,2]
[335912341,1724594708726,228.50347631,0.00011999,2]
[335912343,1724594714727,24900.0,0.00011445,2]
[335912344,1724594718803,776.76814928,0.00011999,2]
[335912345,1724594733589,170.56945991,0.00011999,2]
[335912346,1724594737353,405.4347584,0.00011999,2]
[335912347,1724594738362,4722.61599945,0.00011999,2]
[335912348,1724594746482,1672.57230303,0.00011999,2]
[335912349,1724594748340,1043.53886067,0.00011999,2]
[335912350,1724594748925,275.75163566,0.00011999,2]
[335912351,1724594752959,569.91192576,0.00011999,2]
[335912352,1724594757128,245.37793569,0.00011999,2]
[335912353,1724594762446,2113.20503057,0.00011999,2]
[335912354,1724594764067,1516.55771943,0.00011999,2]
[335912355,1724594766862,695.21412526,0.00011999,2]
[335912356,1724594776599,157.19296325,0.00011999,2]
[335912357,1724594781909,695.21412526,0.00011999,2]
[335912358,1724594807450,309.47389515,0.00011999,2]
[335912359,1724594809773,174.94276175,0.00011999,2]
[335912360,1724594810768,510.5149478,0.00011999,2]
[335912361,1724594821619,223.66132651,0.00011999,2]
[335912362,1724594827491,155.52695339,0.00011999,2]
[335912363,1724594830341,201.15501568,0.00011999,2]
[335912364,1724594842699,154.77557542,0.00011999,2]
[335912365,1724594850927,544.34272896,0.00011999,2]
[335912366,1724594855372,180.90265663,0.00011999,2]
[335912367,1724594861908,306.15878158,0.00011999,2]
[335912368,1724594862763,934.36970065,0.00011999,2]
[335912369,1724594864141,160.5406859,0.00011999,2]
[335912370,1724594865927,167.41389809,0.00011999,2]
[335912371,1724594869180,154.74467129,0.00011999,2]
[335912372,1724594869231,154.93372549,0.00011999,2]
[335912373,1724594871924,342.37001011,0.00011999,2]
[335912374,1724594878429,1280.11816632,0.00012019,2]
[335912375,1724594888887,154.77557542,0.00011999,2]
[335912376,1724594893777,160.5406859,0.00011999,2]
[335912377,1724594916392,5363.68348163,0.00011987,2]
[335912378,1724594916420,29198.07611554,0.00011987,2]
[335912379,1724594918506,413.92740091,0.00011999,2]
[335912388,1724594941747,156.94620324,0.00011999,2]
[335912389,1724594948590,213.17091475,0.00011999,2]
[335912390,1724594958313,346.49016826,0.00011999,2]
[335912394,1724594978991,154.93291255,0.00011999,2]
[335912395,1724594982524,154.77557542,0.00011999,2]
[335912396,1724594995666,154.79103211,0.00011999,2]
[335912397,1724595021197,303.46763219,0.00011999,2]
[335912398,1724595026909,602.25360379,0.00011999,2]
[335912425,1724595031944,-154.77557542,0.0001212,2]
[335912426,1724595031954,-300.0,0.00012162,2]
[335912427,1724595031964,-300.0,0.00012162,2]
[335912428,1724595031975,-4522.9324837,0.00012163,2]
[335912438,1724595038024,-9665.29930679,0.0001212,2]
[335912439,1724595038034,-780.52341053,0.00012163,2]
[335912440,1724595038044,-395.77660923,0.00012163,2]
[335912441,1724595038056,-729.23690144,0.00012163,2]
[335912442,1724595038066,-818.04582615,0.00012356,2]
[335912443,1724595038076,-422.57158596,0.00012516,2]
[335912444,1724595038086,-155.12005193,0.00012516,2]
[335912445,1724595038096,-422.57158596,0.00012516,2]
[335912446,1724595038106,-308.80561753,0.00012516,2]
[335912447,1724595038117,-998.60195726,0.00012628,2]
[335912448,1724595038127,-154.77557542,0.00012629,2]
[335912449,1724595038137,-210.36857024,0.00012629,2]
[335912450,1724595038148,-500.0,0.00012698,2]
[335912451,1724595038158,-500.0,0.00012698,2]
[335912452,1724595038167,-500.0,0.00012698,2]
[335912453,1724595038177,-500.0,0.00012698,2]
[335912454,1724595038187,-500.0,0.00012698,2]
[335912455,1724595038197,-500.0,0.00012698,2]
[335912456,1724595038212,-500.0,0.00012698,2]
[335912457,1724595038223,-500.0,0.00012698,2]
[335912458,1724595038233,-500.0,0.00012698,2]
[335912459,1724595038243,-500.0,0.00012698,2]
[335912460,1724595038253,-500.0,0.00012698,2]
[335912461,1724595038263,-500.0,0.00012698,2]
[335912462,1724595038272,-500.0,0.00012698,2]
[335912463,1724595038282,-500.0,0.00012698,2]
[335912464,1724595038292,-500.0,0.00012698,2]
[335912465,1724595038303,-518.42,0.00012698,2]
[335912466,1724595038313,-458.4,0.00012698,2]
[335912467,1724595038324,-415.4012612,0.000127,2]
[335912468,1724595038334,-153.0,0.000127,2]
[335912469,1724595038344,-306.0,0.000127,2]
[335912470,1724595038354,-2144.08887601,0.00012782,2]
[335912471,1724595038366,-5721.01586602,0.00012794,2]
[335912472,1724595038376,-366.686323,0.00012877,2]
[335912473,1724595038386,-154.85810047,0.00012898,2]
[335912474,1724595038395,-521.67563571,0.00012898,2]
[335912475,1724595038404,-396.99566731,0.00012899,2]
[335912476,1724595038414,-4722.91964164,0.000129,2]
[335912477,1724595038424,-325.72023972,0.00012904,2]
[335912478,1724595038434,-500.0,0.00012904,2]
[335912479,1724595038444,-465.0165228,0.00012911,2]
[335912480,1724595038454,-154.77557542,0.00012934,2]
[335912481,1724595038465,-491.92950484,0.00012971,2]
[335912482,1724595038475,-2714.26786896,0.00012971,2]
[335912483,1724595038485,-1961.71489889,0.00012971,2]
[335912484,1724595038495,-301.73253605,0.00012971,2]
[335912485,1724595038505,-251823.427747,0.00012979,2]
[335912486,1724595038516,-1435.41156726,0.00012985,2]
[335912487,1724595038526,-1362.93248849,0.00012985,2]
[335912488,1724595038535,-154.77557542,0.00012985,2]
[335912489,1724595038546,-153.0,0.00012986,2]
[335912490,1724595038556,-153.0,0.00012986,2]
[335912491,1724595038566,-203.7976468,0.00012986,2]
[335912492,1724595038577,-125911.713874,0.00012989,2]
[335912493,1724595038588,-154.744671,0.00012989,2]
[335912494,1724595038598,-1301.19725324,0.00012989,2]
[335912495,1724595038609,-155.37616833,0.00012991,2]
[335912496,1724595038619,-24335.81,0.00012999,2]
[335912497,1724595038628,-154.86890394,0.00012999,2]
[335912498,1724595038639,-500.0,0.00013,2]
[335912499,1724595038648,-863.03675999,0.00013,2]
[335912500,1724595038658,-150.112233,0.00013,2]
[335912501,1724595038668,-154.77557542,0.00013051,2]
[335912502,1724595038678,-154.77557542,0.00013051,2]
[335912503,1724595038688,-154.82192698,0.00013051,2]
[335912504,1724595038698,-150.112233,0.000131,2]
[335912505,1724595038708,-150.112233,0.000131,2]
[335912506,1724595038718,-4722.9196416,0.00013146,2]
[335912507,1724595038728,-600.0,0.0001315,2]
[335912508,1724595038738,-150.112233,0.000132,2]
[335912509,1724595038747,-150.112233,0.000133,2]
[335912510,1724595038757,-150.112233,0.000133,2]
[335912511,1724595038767,-991.86933725,0.00013333,2]
[335912512,1724595038776,-270.10581919,0.00013333,7]
[335912513,1724595038786,-522.0,0.00013348,2]
[335912514,1724595038796,-420.0,0.00013349,2]
[335912515,1724595038808,-1416.0,0.0001336,2]
[335912516,1724595038819,-181.212216,0.0001336,2]
[335912517,1724595038829,-1719.23300586,0.00013363,2]
[335912518,1724595038838,-420.0,0.00013378,2]
[335912519,1724595038848,-150.112233,0.000134,2]
[335912520,1724595038861,-3989.01,0.0001345,2]
[335912521,1724595038871,-125911.713874,0.00013458,2]
[335912522,1724595038882,-150.0,0.00013463,2]
[335912523,1724595038895,-88888.0,0.00013468,2]
[335912524,1724595038905,-154.77557542,0.00013477,2]
[335912525,1724595038915,-154.77557542,0.00013477,2]
[335912526,1724595038925,-520.98326063,0.00013477,2]
[335912527,1724595038935,-1308.06166657,0.00013478,2]
[335912528,1724595038946,-150.112233,0.000135,2]
[335912529,1724595038956,-150.0,0.00013515,2]
[335912530,1724595038967,-465.00082614,0.00013557,2]
[335912531,1724595038976,-409.311066,0.00013562,2]
[335912532,1724595038986,-153.0,0.00013562,2]
[335912533,1724595038996,-153.0,0.00013562,2]
[335912534,1724595039006,-153.0,0.00013562,2]
[335912535,1724595039016,-409.311066,0.00013562,2]
[335912536,1724595039027,-207.7527474,0.00013562,2]
[335912537,1724595039037,-153.0,0.00013562,2]
[335912538,1724595039047,-409.311066,0.00013562,2]
[335912539,1724595039057,-153.0,0.00013562,2]
[335912540,1724595039067,-409.311066,0.00013562,2]
[335912541,1724595039077,-153.0,0.00013562,2]
[335912542,1724595039088,-207.7527474,0.00013562,2]
[335912543,1724595039099,-409.311066,0.00013562,2]
[335912544,1724595039109,-409.311066,0.00013562,2]
[335912545,1724595039120,-153.0,0.00013562,2]
[335912546,1724595039130,-409.311066,0.00013562,2]
[335912547,1724595039140,-153.0,0.00013562,2]
[335912548,1724595039150,-207.7527474,0.00013562,2]
[335912549,1724595039160,-409.311066,0.00013562,2]
[335912550,1724595039170,-153.0,0.00013562,2]
[335912551,1724595039180,-153.0,0.00013562,2]
[335912552,1724595039189,-207.7527474,0.00013562,2]
[335912553,1724595039199,-153.0,0.00013562,2]
[335912554,1724595039210,-153.0,0.00013562,2]
[335912555,1724595039220,-207.7527474,0.00013562,2]
[335912556,1724595039230,-153.0,0.00013562,2]
[335912557,1724595039240,-153.0,0.00013562,2]
[335912559,1724595039251,-207.7527474,0.00013562,2]
[335912560,1724595039261,-153.0,0.00013562,2]
[335912561,1724595039271,-207.7527474,0.00013562,2]
[335912562,1724595039292,-207.7527474,0.00013562,2]
[335912563,1724595039303,-207.7527474,0.00013562,2]
[335912564,1724595039313,-207.7527474,0.00013562,2]
[335912565,1724595039323,-207.7527474,0.00013562,2]
[335912566,1724595039333,-207.7527474,0.00013562,2]
[335912567,1724595039343,-207.7527474,0.00013562,2]
[335912568,1724595039354,-207.7527474,0.00013562,2]
[335912569,1724595039364,-153.0,0.00013566,2]
[335912570,1724595039374,-153.0,0.00013566,2]
[335912571,1724595039384,-153.0,0.00013566,2]
[335912572,1724595039394,-153.0,0.00013566,2]
[335912573,1724595039404,-153.0,0.00013566,2]
[335912574,1724595039415,-153.0,0.00013566,2]
[335912575,1724595039426,-153.0,0.00013566,2]
[335912576,1724595039436,-153.0,0.00013566,2]
[335912578,1724595039447,-153.0,0.00013566,2]
[335912580,1724595039457,-153.0,0.00013566,2]
[335912581,1724595039467,-153.0,0.00013566,2]
[335912583,1724595039476,-153.0,0.00013566,2]
[335912585,1724595039487,-153.0,0.00013566,2]
[335912587,1724595039499,-153.0,0.00013566,2]
[335912588,1724595039510,-153.0,0.00013566,2]
[335912589,1724595039520,-153.0,0.00013566,2]
[335912590,1724595039530,-153.0,0.00013566,2]
[335912591,1724595039541,-153.0,0.00013566,2]
[335912592,1724595039552,-153.0,0.00013566,2]
[335912593,1724595039563,-153.0,0.00013566,2]
[335912594,1724595039573,-153.0,0.00013566,2]
[335912596,1724595039583,-153.0,0.00013566,2]
[335912598,1724595039593,-153.0,0.00013566,2]
[335912599,1724595039603,-153.0,0.00013566,2]
[335912600,1724595039614,-153.0,0.00013566,2]
[335912601,1724595039625,-153.0,0.00013566,2]
[335912602,1724595039635,-153.0,0.00013566,2]
[335912603,1724595039645,-153.0,0.00013566,2]